bitfinex-derivatives/quotes_SOLF0:USTF0_20251023
["timestamp","ask_amount","ask_price","bid_price","bid_amount"]
[1761227084842,4.7087,191.1,190.91,62.0]
[1761227085045,16.05,191.07,190.91,62.0]
[1761227085443,2.76,191.06,190.94,9.4253]
[1761227086049,2.76,191.06,191.03,4.7103]
[1761227086444,2.76,191.06,191.01,4.7108]
[1761227086644,2.76,191.06,190.94,9.4253]
[1761227086846,2.76,191.06,190.95,9.4248]
[1761227087553,2.76,191.06,191.0,4.7109]
[1761227087746,2.76,191.06,190.91,62.0]
[1761227088145,2.76,191.06,190.98,4.7115]
[1761227088453,2.76,191.06,190.91,62.0]
[1761227089554,2.76,191.06,190.99,4.7113]
[1761227090549,2.76,191.02,190.9,4.76098899]
[1761227090856,2.76,191.02,190.89,46.78]
[1761227091056,2.76,191.02,190.96,4.712]
[1761227091359,2.76,191.02,190.89,46.78]
[1761227091554,2.76,191.02,190.94,4.7125]
[1761227092056,2.76,191.02,190.95,4.7122]
[1761227092751,4.711,191.01,190.89,4.76098899]
[1761227092952,2.76,191.0,190.86,4.76098899]
[1761227093147,2.76,191.0,190.87,4.76098899]
[1761227093455,2.76,191.0,190.94,4.7124]
[1761227094053,2.76,191.0,190.88,4.76098899]
[1761227094054,2.76,191.0,190.92,4.713]
[1761227094358,2.76,191.0,190.88,4.76098899]
[1761227094853,2.76,191.0,190.93,4.7127]
[1761227095055,2.76,190.99,190.93,4.7127]
[1761227097359,4.37726423,191.0,190.89,4.76098899]
[1761227097360,2.76,191.05,190.92,4.76098899]
[1761227097660,2.76,191.05,190.91,4.76098899]
[1761227097855,4.7101,191.05,190.96,4.7119]
[1761227098051,2.76,191.04,190.91,4.76098899]
[1761227098251,2.76,191.03,190.92,4.76098899]
[1761227098452,2.76,191.03,190.93,4.76098899]
[1761227098756,19.29,191.02,190.94,4.65207196]
[1761227098956,19.29,191.02,190.95,4.65207196]
[1761227099159,19.29,191.02,190.96,4.65207196]
[1761227099358,2.8,191.01,190.97,4.65207196]
[1761227099656,2.8,191.01,190.98,4.65207196]
[1761227099657,2.8,191.0,190.98,4.65207196]
[1761227099846,2.8,191.0,190.99,4.65207196]
[1761227100258,16.49,191.02,190.99,4.65207196]
[1761227100462,2.8,191.12,191.05,4.7097]
[1761227100662,2.8,191.11,191.06,4.65207196]
[1761227100862,2.8,191.1,191.07,1.57837961]
[1761227101062,2.8,191.06,190.97,4.76098899]
[1761227101249,2.8,191.02,190.93,4.76098899]
[1761227101456,2.8,191.02,190.94,4.76098899]
[1761227101761,2.8,191.02,190.91,4.76098899]
[1761227102058,2.8,190.99,190.9,4.76098899]
[1761227102260,2.8,190.98,190.9,4.76098899]
[1761227102963,2.8,190.98,190.89,4.76098899]
[1761227103168,2.8,190.98,190.9,4.76098899]
[1761227103464,2.8,190.98,190.92,4.713]
[1761227103861,4.39740304,191.0,190.87,6.14463312]
[1761227103862,4.39740304,191.0,190.91,4.76098899]
[1761227104064,10.71,191.01,190.99,4.7113]
[1761227104360,2.8,191.09,190.99,4.76098899]
[1761227104560,44.04,191.12,190.97,4.76098899]
[1761227104561,2.8,191.04,190.97,4.76098899]
[1761227104755,2.8,191.04,190.94,4.76098899]
[1761227104957,2.8,191.04,190.99,4.7112]
[1761227106674,2.8,191.04,190.95,4.76098899]
[1761227107180,2.8,190.99,190.92,4.76098899]
[1761227107374,2.8,190.99,190.91,4.76098899]
[1761227107774,2.8,190.99,190.94,4.7125]
[1761227108877,2.8,190.99,190.92,4.76098899]
[1761227110685,2.8,190.99,190.91,4.76098899]
[1761227110880,2.8,190.99,190.93,4.7127]
[1761227111085,2.8,190.99,190.91,4.76098899]
[1761227111586,2.8,190.99,190.9,4.76098899]
[1761227111787,2.8,190.99,190.92,4.7129]
[1761227112482,2.8,191.02,190.91,4.76098899]
[1761227112683,4.5242769,191.07,190.93,4.76098899]
[1761227112980,4.5242769,191.07,190.95,4.7124]
[1761227112981,4.7101,191.05,190.95,4.7124]
[1761227113173,4.7101,191.05,190.94,4.76098899]
[1761227113174,2.8,191.04,190.94,4.76098899]
[1761227113374,2.8,191.04,190.93,4.76098899]
[1761227113579,4.7105,191.03,190.94,4.7125]
[1761227113883,35.2442769,191.07,190.93,4.76098899]
[1761227113884,7.3242769,191.07,190.95,4.76098899]
[1761227114085,2.8,191.06,190.96,4.76098899]
[1761227114272,2.8,191.06,190.99,4.7112]
[1761227115385,2.8,191.06,190.94,4.76098899]
[1761227115789,2.8,191.06,190.93,4.76098899]
[1761227116087,2.8,191.02,190.96,4.712]
[1761227116490,2.8,191.02,190.93,4.76098899]
[1761227116688,2.8,191.02,190.91,6.14463312]
[1761227116689,2.8,191.02,190.94,4.76098899]
[1761227116881,2.8,191.02,190.93,4.76098899]
[1761227117391,2.8,191.02,190.97,4.7117]
[1761227117581,58.7140769,191.06,190.95,4.76098899]
[1761227117886,2.8,191.06,190.95,4.76098899]
[1761227118184,2.8,191.06,190.97,4.76098899]
[1761227118388,2.8,191.06,191.03,4.7103]
[1761227118589,46.68,191.09,190.99,4.76098899]
[1761227118986,46.68,191.09,191.02,4.7107]
[1761227119183,49.48,191.09,191.02,4.7107]
[1761227119382,49.48,191.09,190.99,4.76098899]
[1761227119688,49.48,191.09,191.01,4.76098899]
[1761227119890,49.48,191.09,191.02,4.70320826]
[1761227120189,46.68,191.09,191.03,4.70320826]
[1761227120379,46.68,191.09,191.04,4.70320826]
[1761227120579,46.68,191.09,191.05,4.70320826]
[1761227120790,46.68,191.09,191.06,4.70320826]
[1761227120982,46.68,191.09,191.07,4.70320826]
[1761227121182,46.68,191.09,191.08,4.70320826]
[1761227121583,2.8,191.13,191.08,4.70320826]
[1761227121788,2.8,191.13,191.01,4.5242769]
[1761227121789,2.8,191.18,191.09,4.70320826]
[1761227121988,2.8,191.18,191.1,4.70320826]
[1761227122288,2.8,191.18,191.11,9.41160826]
[1761227122484,2.8,191.18,191.12,4.70320826]
[1761227122685,2.8,191.17,191.13,4.70320826]
[1761227122884,2.8,191.17,191.09,4.7089]
[1761227123192,2.8,191.17,191.11,4.7084]
[1761227123391,2.8,191.17,191.12,4.69468665]
[1761227123592,2.8,191.17,191.13,4.69468665]
[1761227123792,2.8,191.17,191.14,4.69468665]
[1761227123996,2.8,191.17,191.06,4.76098899]
[1761227124297,2.8,191.17,191.07,4.69180306]
[1761227124491,2.8,191.17,191.08,4.69180306]
[1761227124695,2.8,191.17,191.09,4.69180306]
[1761227124896,2.8,191.17,191.11,4.7084]
[1761227125090,2.8,191.17,191.12,4.69180306]
[1761227125290,2.8,191.17,191.13,4.69180306]
[1761227125490,2.8,191.17,191.11,4.7084]
[1761227125795,2.8,191.17,191.12,4.68846193]
[1761227125996,2.8,191.17,191.13,4.68846193]
[1761227126298,2.8,191.17,191.11,4.7084]
[1761227126493,2.8,191.17,191.12,4.68614327]
[1761227126690,2.8,191.17,191.11,4.7084]
[1761227126886,2.8,191.17,191.12,4.68614327]
[1761227127091,2.85,191.16,191.09,4.7089]
[1761227127391,2.85,191.16,191.1,4.68613869]
[1761227127589,2.85,191.16,191.11,4.68613869]
[1761227127791,2.85,191.14,191.03,4.76098899]
[1761227127984,2.85,191.12,191.04,4.68541161]
[1761227128194,2.85,191.12,191.05,4.68541161]
[1761227128394,46.62,191.13,191.06,4.68541161]
[1761227128696,46.62,191.13,191.07,4.68541161]
[1761227128896,2.82,191.12,191.08,9.39461161]
[1761227129093,46.62,191.15,191.09,4.68541161]
[1761227129399,49.44,191.15,191.1,4.68541161]
[1761227129599,46.62,191.15,191.11,4.68541161]
[1761227129899,2.82,191.14,191.07,4.7093]
[1761227130101,2.82,191.14,191.08,4.68225932]
[1761227130396,2.82,191.14,191.09,4.68225932]
[1761227130597,2.82,191.14,191.01,9.2950937]
[1761227130798,2.82,191.14,191.02,4.68179048]
[1761227130999,2.82,191.14,191.01,4.5242769]
[1761227131000,2.82,191.14,191.03,4.68179048]
[1761227131195,2.82,191.14,191.01,9.2950937]
[1761227131196,2.82,191.14,191.04,4.68179048]
[1761227131397,46.62,191.15,191.05,4.68179048]
[1761227131594,46.62,191.15,191.06,4.68179048]
[1761227131795,46.62,191.15,191.07,4.68179048]
[1761227131992,46.62,191.15,191.09,4.7088]
[1761227132188,46.62,191.15,191.1,4.68179048]
[1761227132392,7.5266,191.19,191.11,4.68179048]
[1761227132594,4.86150119,191.32,191.15,0.49]
[1761227132793,4.5242769,191.38,191.18,5.2608168]
[1761227132992,31.3,191.37,191.22,0.49]
[1761227133305,31.3,191.37,191.23,4.68179048]
[1761227133306,4.5242769,191.31,191.23,4.68179048]
[1761227133500,4.5242769,191.4,191.17,0.49]
[1761227133501,4.5242769,191.27,191.17,0.49]
[1761227133698,43.7442769,191.27,191.18,4.66293643]
[1761227133903,43.7442769,191.27,191.19,4.66293643]
[1761227134204,43.7442769,191.27,191.13,0.49]
[1761227134503,39.22,191.27,191.16,0.49]
[1761227134798,39.22,191.27,191.17,5.15117935]
[1761227135005,2.82,191.28,191.18,4.66117935]
[1761227135296,2.82,191.25,191.12,0.49]
[1761227135495,2.82,191.23,191.13,4.65892175]
[1761227135701,21.72,191.24,191.06,0.49]
[1761227135702,2.82,191.21,191.06,0.49]
[1761227135898,2.82,191.21,191.02,4.5242769]
[1761227135899,41.82,191.2,191.08,0.49]
[1761227136099,2.82,191.21,191.09,5.15138135]
[1761227136100,46.58,191.19,191.09,5.15138135]
[1761227136300,46.58,191.19,191.1,4.66138135]
[1761227136603,46.58,191.19,191.11,4.66138135]
[1761227136806,49.4,191.19,191.12,4.66138135]
[1761227137098,2.82,191.17,191.07,0.49]
[1761227137298,46.56,191.16,191.08,4.66003538]
[1761227137497,46.56,191.16,191.09,4.66003538]
[1761227137795,2.82,191.17,191.1,4.66003538]
[1761227138002,2.82,191.15,191.02,0.49]
[1761227138204,2.82,191.15,191.04,0.49]
[1761227138499,2.82,191.15,191.06,0.49]
[1761227138700,6.98,191.15,191.07,5.14984603]
[1761227138904,6.98,191.15,191.08,4.65984603]
[1761227139102,6.98,191.15,191.09,4.65984603]
[1761227139295,6.98,191.15,191.1,4.65984603]
[1761227139499,6.98,191.15,191.07,0.49]
[1761227139804,6.98,191.15,191.08,4.65904577]
[1761227139998,6.98,191.15,191.07,5.1992]
[1761227139999,6.98,191.15,191.09,4.65904577]
[1761227140301,19.92,191.15,191.1,4.65904577]
[1761227140505,36.28,191.15,191.07,5.1992]
[1761227140704,2.82,191.14,191.08,4.65994869]
[1761227141007,2.82,191.13,191.02,0.49]
[1761227141202,2.82,191.13,191.03,5.15213125]
[1761227141506,2.82,191.13,191.04,9.37203125]
[1761227141706,2.82,191.13,191.05,4.66213125]
[1761227141903,2.82,191.17,191.06,5.15213125]
[1761227142098,43.24,191.16,191.1,4.7086]
[1761227142401,2.82,191.16,191.11,4.66213125]
[1761227142703,2.82,191.16,191.1,4.7086]
[1761227142903,2.82,191.16,191.11,4.66040873]
[1761227143104,2.82,191.16,191.1,4.7086]
[1761227143292,2.82,191.16,191.08,0.49]
[1761227143293,2.82,191.16,191.11,4.66030091]
[1761227143499,2.82,191.15,191.03,0.49]
[1761227143694,2.82,191.15,191.04,4.66223041]
[1761227144002,2.82,191.15,191.05,4.66223041]
[1761227144204,2.82,191.15,191.06,9.37183041]
[1761227144404,2.82,191.15,191.07,4.66223041]
[1761227144700,2.82,191.15,191.08,4.66223041]
[1761227144901,7.5275,191.15,191.09,4.66223041]
[1761227145103,2.82,191.15,191.03,4.7102]
[1761227145307,2.82,191.15,191.04,4.66389096]
[1761227145507,2.82,191.15,191.05,4.66389096]
[1761227145708,2.82,191.15,191.06,4.66389096]
[1761227145999,2.82,191.15,191.03,4.7102]
[1761227146000,2.82,191.12,191.04,4.7099]
[1761227146309,2.82,191.1,191.05,4.6594023]
[1761227146510,2.82,191.1,190.99,0.49]
[1761227146707,2.82,191.1,191.0,4.66211634]
[1761227146902,7.3442769,191.08,191.01,4.66211634]
[1761227147203,2.82,191.07,191.02,4.66211634]
[1761227147404,2.82,191.07,190.99,4.7111]
[1761227147605,2.82,191.07,191.0,4.66282368]
[1761227147805,46.54,191.06,191.01,4.66282368]
[1761227148008,49.36,191.06,190.99,4.7111]
[1761227148311,49.36,191.06,191.0,4.66364234]
[1761227148507,49.36,191.06,191.01,4.66364234]
[1761227148808,46.54,191.06,190.99,4.7111]
[1761227149004,46.54,191.06,191.0,4.66491994]
[1761227149209,2.82,191.05,191.01,4.66491994]
[1761227149508,2.82,191.05,190.99,4.7111]
[1761227149704,2.82,191.05,191.0,4.66438892]
[1761227149907,2.82,191.05,191.01,4.66438892]
[1761227150103,2.82,191.05,191.01,4.7108]
[1761227150306,2.82,191.1,191.02,4.6641017]
[1761227150511,6.54,191.12,191.03,5.1541017]
[1761227150812,2.82,191.15,191.05,0.49]
[1761227151002,26.26,191.14,191.06,4.6641017]
[1761227151196,26.26,191.14,191.07,4.6641017]
[1761227151397,2.82,191.13,191.08,4.6641017]
[1761227151602,2.82,191.13,191.0,0.49]
[1761227151803,2.82,191.13,191.02,0.49]
[1761227152006,2.82,191.13,191.04,4.71]
[1761227152210,49.34,191.13,191.05,4.66258449]
[1761227152413,49.34,191.13,191.06,4.66258449]
[1761227152604,49.34,191.13,191.07,4.66258449]
[1761227152912,49.34,191.13,191.08,4.66258449]
[1761227153112,2.82,191.12,191.02,0.49]
[1761227153411,2.82,191.12,191.03,4.66033417]
[1761227153613,2.82,191.12,191.04,4.66033417]
[1761227153812,49.34,191.12,191.05,4.66033417]
[1761227154006,49.34,191.12,191.06,4.66033417]
[1761227154207,2.82,191.11,191.07,4.66033417]
[1761227154410,2.82,191.11,191.08,4.66275613]
[1761227154610,2.82,191.11,191.05,4.7098]
[1761227154808,2.82,191.11,191.06,4.6632465]
[1761227155014,2.82,191.11,191.07,4.6632465]
[1761227155308,2.82,191.11,191.08,4.6632465]
[1761227155613,2.82,191.11,191.09,4.6632465]
[1761227155809,2.82,191.11,191.08,4.709]
[1761227156118,2.82,191.11,191.09,4.66429043]
[1761227156315,49.34,191.12,191.08,4.709]
[1761227156517,49.34,191.12,191.09,4.66628101]
[1761227156706,49.34,191.12,191.08,4.709]
[1761227156910,49.34,191.12,191.09,4.66677371]
[1761227157109,49.34,191.12,191.08,4.709]
[1761227157419,49.34,191.12,191.09,4.66677496]
[1761227157613,2.82,191.11,191.08,4.709]
[1761227157915,2.82,191.11,191.09,4.66982399]
[1761227158119,2.82,191.11,191.06,4.7096]
[1761227158309,2.82,191.11,191.07,9.37927047]
[1761227158508,35.38,191.1,191.08,4.67007047]
[1761227158710,2.82,191.15,191.09,4.67007047]
[1761227159009,2.75,191.13,191.1,4.67007047]
[1761227159209,2.75,191.13,191.04,0.49]
[1761227159417,2.75,191.13,191.05,4.67295377]
[1761227159605,2.75,191.13,191.06,4.67295377]
[1761227159804,2.75,191.13,191.07,4.67295377]
[1761227160020,2.75,191.13,191.08,9.38195377]
[1761227160210,2.75,191.13,191.09,4.67295377]
[1761227160411,35.56,191.12,191.1,4.67295377]
[1761227160714,35.56,191.12,191.11,4.67295377]
[1761227160914,4.7066,191.19,191.11,4.67295377]
[1761227161217,43.43,191.18,191.12,4.67285182]
[1761227161412,2.75,191.21,191.13,4.67285182]
[1761227161713,46.48,191.2,191.14,4.67285182]
[1761227161917,46.48,191.2,191.08,4.74837015]
[1761227161918,2.75,191.19,191.08,4.74837015]
[1761227162114,2.75,191.18,191.09,4.67473263]
[1761227162315,2.75,191.18,191.1,4.67473263]
[1761227162620,2.75,191.18,191.11,4.67473263]
[1761227162922,2.75,191.18,191.12,4.67473263]
[1761227163117,2.75,191.18,191.13,4.67473263]
[1761227163118,46.48,191.17,191.13,4.67473263]
[1761227163418,4.706,191.21,191.14,9.38233263]
[1761227163613,7.4555,191.23,191.15,4.67473263]
[1761227163817,2.75,191.23,191.16,4.67473263]
[1761227164017,2.75,191.23,191.13,0.49]
[1761227164018,46.48,191.22,191.17,4.67473263]
[1761227164322,49.23,191.22,191.18,4.67473263]
[1761227164617,2.75,191.21,191.15,4.7074]
[1761227164916,46.46,191.2,191.16,4.62748731]
[1761227165216,46.46,191.2,191.17,4.62748731]
[1761227165406,46.46,191.2,191.18,4.62748731]
[1761227165719,46.46,191.2,191.13,0.49]
[1761227165918,46.46,191.2,191.14,4.62669351]
[1761227166119,46.46,191.2,191.16,4.707]
[1761227166417,2.75,191.21,191.17,4.62669351]
[1761227166614,49.21,191.21,191.18,4.62669351]
[1761227166807,49.21,191.21,191.16,4.707]
[1761227167014,46.46,191.21,191.17,4.62531566]
[1761227167215,46.46,191.21,191.18,4.62531566]
[1761227167419,2.75,191.25,191.19,4.62531566]
[1761227167617,46.46,191.24,191.2,4.62531566]
[1761227167919,46.46,191.24,191.21,4.62531566]
[1761227168123,2.75,191.29,191.22,4.62531566]
[1761227168419,46.44,191.28,191.23,5.11531566]
[1761227168610,46.44,191.28,191.24,4.62531566]
[1761227168917,46.44,191.28,191.12,4.74837015]
[1761227168918,2.75,191.26,191.12,4.74837015]
[1761227169115,2.75,191.26,191.1,7.37837015]
[1761227169315,2.75,191.25,191.11,2.63]
[1761227169608,2.75,191.23,191.08,4.74837015]
[1761227169813,2.75,191.21,191.08,4.74837015]
[1761227170022,4.7065,191.19,191.08,2.63]
[1761227170414,7.4569,191.18,191.09,4.7089]
[1761227170623,49.19,191.17,191.08,2.63]
[1761227171506,49.19,191.17,191.08,7.3391]
[1761227172207,53.8971,191.17,191.08,7.3391]
[1761227172407,2.75,191.16,191.06,4.7096]
[1761227172813,4.7075,191.15,191.07,4.7093]
[1761227173717,7.4575,191.15,191.07,4.7093]
[1761227173909,7.4575,191.15,191.06,2.63]
[1761227174114,46.42,191.14,191.06,2.63]
[1761227174923,49.17,191.14,191.06,2.63]
[1761227175221,49.17,191.14,191.07,4.7092]
[1761227176912,2.75,191.13,191.07,4.7092]
[1761227177412,46.42,191.14,191.02,4.76265935]
[1761227177413,2.75,191.11,191.02,4.76265935]
[1761227177619,2.75,191.09,190.98,4.76265935]
[1761227177924,2.75,191.09,190.94,4.76265935]
[1761227178227,2.75,191.06,190.97,4.7117]
[1761227179822,2.75,191.06,190.99,4.7114]
[1761227180419,2.75,191.06,190.96,4.7121]
[1761227180616,2.75,191.04,190.95,2.63]
[1761227180818,2.75,191.04,190.91,7.39265935]
[1761227181026,2.75,191.04,190.94,4.7126]
[1761227181212,2.75,191.01,190.91,2.63]
[1761227181420,2.75,191.0,190.87,2.63]
[1761227181712,98.0149,191.08,190.86,110.67160491]
[1761227181713,2.75,190.96,190.86,110.67160491]
[1761227181916,2.75,190.93,190.86,105.95720491]
[1761227182721,2.75,190.93,190.79,7.39265935]
[1761227183525,46.4,190.92,190.8,2.63]
[1761227183730,46.4,190.92,190.81,2.63]
[1761227184026,2.75,190.91,190.83,4.7153]
[1761227184525,2.75,190.91,190.84,4.7149]
[1761227185822,46.4,190.95,190.81,2.63]
[1761227185823,49.13,190.95,190.81,2.63]
[1761227186021,2.73,190.95,190.82,2.79]
[1761227186328,46.4,190.94,190.86,4.7144]
[1761227188933,46.4,190.94,190.85,2.79]
[1761227189127,2.73,190.95,190.85,2.79]
[1761227189332,2.6,190.98,190.85,2.79]
[1761227189530,5.33,190.98,190.85,2.79]
[1761227189734,5.33,190.98,190.92,4.7131]
[1761227189939,2.73,190.98,190.89,2.61]
[1761227190731,2.73,190.98,190.85,2.61]
[1761227190931,7.43927015,190.97,190.81,2.61]
[1761227191133,2.73,190.96,190.81,2.61]
[1761227191329,2.73,190.92,190.75,2.61]
[1761227191525,2.73,190.9,190.75,2.61]
[1761227191931,2.73,190.88,190.76,4.717]
[1761227192233,2.73,190.88,190.77,2.61]
[1761227192439,7.4444,190.88,190.77,2.61]
[1761227192738,2.73,190.88,190.77,2.61]
[1761227193933,2.73,190.87,190.78,4.7164]
[1761227194338,2.73,190.87,190.79,8.99365126]
[1761227194540,2.73,190.87,190.8,4.27755126]
[1761227194840,2.73,190.87,190.79,4.7161]
[1761227194841,2.73,190.87,190.81,4.27755126]
[1761227195034,2.73,190.87,190.82,4.27755126]
[1761227195232,2.73,190.87,190.83,4.27755126]
[1761227195435,2.73,190.87,190.84,4.27755126]
[1761227195633,2.73,190.87,190.85,4.274263]
[1761227195828,2.73,190.87,190.69,12.2019295]
[1761227196233,2.73,190.86,190.69,7.43927015]
[1761227196626,2.73,190.86,190.7,62.0]
[1761227197432,2.73,190.86,190.77,4.7166]
[1761227197643,2.73,190.88,190.73,2.31]
[1761227198037,2.73,190.88,190.75,4.7173]
[1761227198347,2.73,190.84,190.73,2.31]
[1761227198646,46.41,190.84,190.73,2.31]
[1761227198847,2.73,190.84,190.73,2.31]
[1761227199441,2.73,190.84,190.75,4.7171]
[1761227199845,2.73,190.84,190.73,2.31]
[1761227200540,2.73,190.83,190.74,4.7175]
[1761227200736,2.73,190.83,190.73,2.31]
[1761227201048,2.73,190.8,190.72,4.718]
[1761227201638,2.73,190.8,190.69,7.0286]
[1761227201838,2.73,190.8,190.63,7.43927015]
[1761227202145,7.43927015,190.76,190.58,2.31]
[1761227202449,2.73,190.75,190.58,2.31]
[1761227202658,2.73,190.71,190.58,2.31]
[1761227202952,2.73,190.71,190.6,4.721]
[1761227202953,2.73,190.7,190.6,4.721]
[1761227203150,2.73,190.7,190.58,2.31]
[1761227203750,2.73,190.7,190.6,4.7208]
[1761227204752,2.73,190.7,190.58,2.31]
[1761227206053,2.73,190.7,190.59,4.721]
[1761227206959,2.73,190.7,190.58,2.31]
[1761227207143,2.73,190.69,190.58,2.31]
[1761227207547,2.73,190.69,190.58,7.0315]
[1761227207749,2.73,190.69,190.59,2.31]
[1761227207953,2.73,190.73,190.59,2.31]
[1761227208259,2.73,190.73,190.57,2.31]
[1761227208447,2.73,190.73,190.61,2.31]
[1761227208752,2.73,190.73,190.65,4.7198]
[1761227209157,2.73,190.73,190.63,4.7203]
[1761227210345,2.73,190.72,190.6,4.7208]
[1761227211550,7.4483,190.72,190.62,4.7205]
[1761227211856,2.73,190.71,190.62,4.7205]
[1761227212255,2.73,190.71,190.57,2.31]
[1761227212256,2.73,190.7,190.59,4.7211]
[1761227212442,2.73,190.7,190.57,2.31]
[1761227213455,7.4494,190.67,190.57,2.31]
[1761227214153,2.73,190.67,190.59,4.7213]
[1761227215155,2.73,190.67,190.61,4.7207]
[1761227216163,2.73,190.67,190.59,4.7212]
[1761227216458,7.4495,190.67,190.57,2.31]
[1761227217852,46.34,190.72,190.53,2.31]
[1761227217853,2.73,190.64,190.53,2.31]
[1761227218057,2.73,190.64,190.46,4.541433]
[1761227218255,62.08,190.72,190.5,4.7235]
[1761227218256,2.73,190.61,190.5,4.7235]
[1761227218445,2.73,190.69,190.52,2.31]
[1761227218647,2.64,190.66,190.52,2.31]
[1761227218846,4.541433,190.67,190.52,2.31]
[1761227218847,7.361,190.61,190.52,2.31]
[1761227219358,2.64,190.6,190.52,2.31]
[1761227220658,2.64,190.6,190.51,4.7232]
[1761227220857,2.64,190.6,190.48,2.31]
[1761227221553,2.64,190.56,190.43,2.31]
[1761227222250,2.64,190.55,190.44,2.31]
[1761227222455,46.34,190.61,190.44,2.31]
[1761227222664,2.64,190.6,190.47,2.31]
[1761227222852,46.32,190.67,190.51,2.31]
[1761227223061,2.64,190.66,190.51,2.31]
[1761227223262,2.64,190.64,190.51,2.31]
[1761227223556,46.32,190.67,190.42,107.54727453]
[1761227223557,2.64,190.6,190.44,2.31]
[1761227223960,2.64,190.55,190.44,2.31]
[1761227224461,2.64,190.6,190.45,2.31]
[1761227224657,2.64,190.59,190.45,2.31]
[1761227225058,7.3615,190.59,190.5,4.7234]
[1761227225270,7.3615,190.59,190.45,2.31]
[1761227225661,4.7217,190.58,190.48,7.0338]
[1761227225962,2.64,190.59,190.48,2.31]
[1761227226164,46.32,190.62,190.49,2.31]
[1761227226765,46.32,190.62,190.54,4.7224]
[1761227226965,46.32,190.62,190.49,2.31]
[1761227226966,2.64,190.61,190.49,2.31]
[1761227227364,46.32,190.62,190.49,2.31]
[1761227227760,2.64,190.61,190.49,2.31]
[1761227228362,2.64,190.61,190.49,7.0337]
[1761227228568,2.64,190.61,190.49,2.31]
[1761227229171,2.64,190.61,190.5,4.7233]
[1761227229369,2.64,190.61,190.5,2.31]
[1761227230163,2.64,190.61,190.54,4.7225]
[1761227230364,2.64,190.65,190.51,2.31]
[1761227230568,2.64,190.74,190.62,4.7203]
[1761227230871,151.1,190.81,190.62,4.7203]
[1761227230872,2.64,190.72,190.62,4.7203]
[1761227231058,2.64,190.72,190.63,4.7201]
[1761227231258,2.64,190.72,190.6,2.31]
[1761227231567,48.94,190.75,190.63,2.31]
[1761227231771,2.64,190.75,190.63,2.31]
[1761227232071,2.64,190.8,190.67,2.31]
[1761227232256,2.64,190.8,190.66,4.541433]
[1761227232462,46.3,190.81,190.71,2.31]
[1761227232861,46.3,190.81,190.73,4.7178]
[1761227233276,46.3,190.81,190.71,2.31]
[1761227233566,46.3,190.81,190.67,62.0]
[1761227233567,2.64,190.8,190.67,62.0]
[1761227233766,46.3,190.81,190.66,2.31]
[1761227233767,7.181433,190.77,190.66,2.31]
[1761227234272,7.181433,190.77,190.67,4.7193]
[1761227234771,2.64,190.76,190.66,2.31]